Cogmind - Beta 9.6 @@@ ROGUE MODE // 2020.06.15 @ 21:30:01 Player: homogoblin Result: Destroyed self with Rocket Launcher Performance ------------- Evolutions (1) 500 Regions Visited (3) 600 Robots Destroyed (33) 165 Value Destroyed (801) 801 Prototype IDs (1) 20 Alien Tech Used (0) 0 Bonus (54) 54 TOTAL SCORE: 2140 Bonus ------- High Alert Combat Kills 54 Cogmind --------- Core Integrity 0/400 Matter 34/300 Energy 280/280 System Corruption 5% Temperature Cool (0) Movement Core (200) Ox3 Location -9/Materials Parts ------- > --- POWER (1) -------- Cooled Ion Engine > --- PROPULSION (3) --- (None) > --- UTILITY (3) ------ (None) > --- WEAPON (2) ------- Rocket Launcher > --- INVENTORY (4) ---- Rocket Launcher Peak State ------------ > --- POWER ------------ Light Ion Engine > --- PROPULSION ------- Armored Treads > --- UTILITY ---------- Small Storage Unit Improved Targeting Computer > --- WEAPON ----------- Beamcaster Rocket Launcher > --- INVENTORY -------- Rocket Launcher Rocket Launcher Rocket Launcher Rocket Launcher Rocket Launcher [Rating: 15] Favorites ----------- Power Light Ion Engine Engine Light Ion Engine Propulsion Light Treads Treads Light Treads Utility Small Storage Unit Storage Small Storage Unit Processor Improved Targeting Computer Weapon Assault Rifle Energy Gun Beamcaster Ballistic Gun Assault Rifle Launcher Rocket Launcher Build | -11 -10 -10 -9 ------- Run | Scr Mat Min Mat Slots Evolved 2 | . . . 2 Power . | . . . . Propulsion 1 | . . . 1 Utility 1 | . . . 1 Weapon . | . . . . Parts Attached 14 | 4 . 1 9 Power 3 | 1 . . 2 Engine 3 | 1 . . 2 Core . | . . . . Reactor . | . . . . Propulsion 3 | 2 . . 1 Treads 3 | 2 . . 1 Leg . | . . . . Wheel . | . . . . Hover . | . . . . Flight . | . . . . Utility 2 | 1 . . 1 Device . | . . . . Storage 1 | 1 . . . Processor 1 | . . . 1 Hackware . | . . . . Protection . | . . . . Artifact . | . . . . Weapon 6 | . . 1 5 Energy Gun 1 | . . . 1 Energy Cannon . | . . . . Ballistic Gun 1 | . . 1 . Ballistic Cannon . | . . . . Launcher 4 | . . . 4 Special Weapon . | . . . . Impact Weapon . | . . . . Slashing Weapon . | . . . . Piercing Weapon . | . . . . Special Melee Weapon . | . . . . Unidentified Prototypes 1 | . . . 1 Parts Lost 9 | . . . 9 Power 1 | . . . 1 Propulsion 2 | . . . 2 Utility 2 | . . . 2 Weapon 4 | . . . 4 Highest Loss Streak 3 | . . . 3 Average Slot Usage (%) 56 | . 57 66 49 Engine 10 | . 14 14 6 Treads 19 | . 28 28 13 Storage 11 | . 14 14 9 Processor 4 | . . . 7 Energy Gun 1 | . . . 2 Ballistic Gun 5 | . . 9 4 Launcher 3 | . . . 6 Naked Turns 2 | . . . 2 Heaviest Build 16 | 7 7 9 16 Greatest Support 20 | 20 20 20 20 Greatest Overweight (x) 3 | . . . 3 Average Overweight (x) . | . . . . Largest Inventory Capacity 6 | 6 6 6 6 Average Capacity 5 | 5 6 6 5 Most Carried 6 | 4 3 5 6 Average Carried 4 | 2 3 4 4 Final Capacity 6 | 6 6 6 4 Final Carried 4 | 3 3 4 1 Class Distribution -------------------- 100% | Mutant Dominant Class ---------------- Mutant | -10/Materials Mutant | -10/Mines Mutant | -9/Materials Resources | -11 -10 -10 -9 ----------- Run | Scr Mat Min Mat Matter Collected 530 | 194 . 77 259 Remotely . | . . . . Salvage Created 781 | . . 96 685 Parts 40 | . . 7 33 Haulers Intercepted 2 | . . . 2 Recyclers Shooed 3 | . . . 3 Parts Field Recycled . | . . . . Retrieved Matter . | . . . . Parts Self-Destructed . | . . . . Prevented . | . . . . Kills | -11 -10 -10 -9 ------- Run | Scr Mat Min Mat Combat Hostiles Destroyed 22 | . . 3 19 Guns 5 | . . 3 2 AOE 17 | . . . 17 Classes Destroyed 10 | . . 2 8 Worker 2 | . . . 2 Builder 1 | . . . 1 Hauler 2 | . . . 2 Recycler 4 | . . 1 3 Watcher 2 | . . . 2 Swarmer 6 | . . 3 3 Grunt 9 | . . . 9 Brawler 1 | . . . 1 Duelist 1 | . . . 1 Sentry 5 | . . . 5 Best Kill Streak 13 | . . 4 13 Combat Bots Only 9 | . . 3 9 Max Kills in Single Turn 3 | . . 1 3 Gunslinging . | . . . . Exploded 3 | . . . 3 Melee . | . . . . Uniques/NPCs Destroyed . | . . . . Combat | -11 -10 -10 -9 -------- Run | Scr Mat Min Mat Damage Taken 1700 | . . 89 1611 Core 421 | . . 21 400 Absorbed by Shields . | . . . . Core Remaining (%) 95 | 100 . 91 . Volleys Fired 55 | . . 7 48 Largest 1 | . . 1 1 Hottest 75 | . . 20 75 Shots Fired 55 | . . 7 48 Gun 11 | . . 7 4 Cannon . | . . . . Launcher 44 | . . . 44 Special . | . . . . Kinetic 7 | . . 7 . Thermal 4 | . . . 4 Explosive 44 | . . . 44 Electromagnetic . | . . . . Robot Hit Streak 9 | . . 2 9 Robot Miss Streak 4 | . . 4 2 Penetration Max . | . . . . Secondary Targets . | . . . . Shots Hit Robots 30 | . . 3 27 Core Hits 53 | . . 4 49 Critical Hits . | . . . . Critical Kills . | . . . . Critical Parts Destroyed . | . . . . Melee Attacks . | . . . . Impact . | . . . . Slashing . | . . . . Piercing . | . . . . Sneak Attacks . | . . . . Combat Hostiles . | . . . . Follow-up Attacks . | . . . . Damage Inflicted 2385 | . . 55 2330 Guns 137 | . . 55 82 Cannons . | . . . . Explosions 2247 | . . . 2247 Melee . | . . . . Ramming 1 | . . . 1 Kinetic 55 | . . 55 . Thermal 82 | . . . 82 Explosive 2247 | . . . 2247 Electromagnetic . | . . . . Impact . | . . . . Slashing . | . . . . Piercing . | . . . . Highest Corruption 5 | . . . 5 Average Corruption 5 | . . . 5 Corruption Purged . | . . . . Effects 1 | . . . 1 Heat Flow Errors 1 | . . . 1 Overload Shots . | . . . . Overflow Damage 88 | . . . 88 Projectiles . | . . . . Explosions 88 | . . . 88 Melee . | . . . . Knockbacks . | . . . . Impact . | . . . . Kinetic . | . . . . Secondary . | . . . . Self-Inflicted Damage 579 | . . . 579 Shots 17 | . . . 17 Rammed 1 | . . . 1 Targets Rammed 1 | . . . 1 Kicked . | . . . . Crushed . | . . . . Highest Temperature 172 | . . . 172 Average Temperature 71 | . . . 71 Received Heat Transfer 273 | . . . 273 Siege Activations . | . . . . Robots Corrupted . | . . . . Combat Hostiles . | . . . . Parts Fried . | . . . . Impact Corruptions . | . . . . Robots Melted . | . . . . Combat Hostiles . | . . . . Parts Melted . | . . . . Heat Transferred 148 | . . . 148 Parts Sabotaged . | . . . . Parts Stolen . | . . . . Parts Stripped . | . . . . Power Chain Reactions . | . . . . Missiles Intercepted . | . . . . Alert | -11 -10 -10 -9 ------- Run | Scr Mat Min Mat Peak Influence 623 | . 15 80 623 Average Influence 147 | . 13 54 242 Maximum Alert Level 2 | . . . 2 Low Security (%) 76 | 100 100 100 56 Level 1 5 | . . . 10 Level 2 17 | . . . 33 Level 3 . | . . . . Level 4 . | . . . . Level 5 . | . . . . High Security . | . . . . Max Security . | . . . . Squads Dispatched 2 | . 1 . 1 Investigation . | . . . . Extermination . | . . . . Reinforcement 2 | . 1 . 1 Assault . | . . . . Garrison . | . . . . Intercept . | . . . . Construction Impeded 1 | . . . 1 Haulers Reinforced . | . . . . Stealth | -11 -10 -10 -9 --------- Run | Scr Mat Min Mat Distress Signals 3 | . . . 3 Communications Jammed . | . . . . Distress Signals . | . . . . Times Spotted 27 | . 1 3 23 Peak Tracking Total 6 | . . 3 6 Tactical Retreats 1 | . . . 1 Traps | -11 -10 -10 -9 ------- Run | Scr Mat Min Mat Traps Triggered . | . . . . Indirectly . | . . . . Trap Hack Attempts . | . . . . Triggered . | . . . . Disarmed . | . . . . Reprogrammed . | . . . . Reused . | . . . . Traps Extracted . | . . . . Installed . | . . . . Triggered . | . . . . Machines | -11 -10 -10 -9 ---------- Run | Scr Mat Min Mat Machines Disabled 6 | . . . 6 Max in Single Turn 1 | . . . 1 Machines Sabotaged . | . . . . Garrisons Compromised . | . . . . Overloaded Fab Kills . | . . . . Fab Network Shutdowns . | . . . . Hacking | -11 -10 -10 -9 --------- Run | Scr Mat Min Mat Machines Accessed 2 | . . 1 1 Terminals 1 | . . . 1 Fabricators . | . . . . Repair Stations . | . . . . Recycling Units . | . . . . Scanalyzers . | . . . . Garrison Access . | . . . . Total Hacks 4 | . . 1 3 Successful 2 | . . 1 1 Failed 2 | . . . 2 Catastrophic . | . . . . Database Lockouts . | . . . . Manual . | . . . . Terminals 3 | . . . 3 Fabricators . | . . . . Repair Stations . | . . . . Recycling Units . | . . . . Scanalyzers . | . . . . Garrison Access . | . . . . Terminal Hacks 2 | . . 1 1 Open Door 1 | . . 1 . Zone Layout 1 | . . . 1 Fabricator Hacks . | . . . . Repair Station Hacks . | . . . . Recycling Unit Hacks . | . . . . Scanalyzer . | . . . . Garrison Access Hacks . | . . . . Unauthorized Hacks . | . . . . Terminals . | . . . . Fabricators . | . . . . Repair Stations . | . . . . Recycling Units . | . . . . Scanalyzers . | . . . . Garrison Access . | . . . . Data Cores Recovered . | . . . . Used . | . . . . Hacking Detections 1 | . . . 1 Full Trace Events . | . . . . Feedback Events . | . . . . Feedback Blocked . | . . . . Robot Schematics Acquired . | . . . . Robots Built . | . . . . Matter . | . . . . Time . | . . . . Total Robot Build Rating . | . . . . Part Schematics Acquired . | . . . . Parts Built . | . . . . Matter . | . . . . Time . | . . . . Total Part Build Rating . | . . . . Parts Repaired . | . . . . Time . | . . . . Parts Recycled . | . . . . Recycled Matter . | . . . . Retrieved Matter . | . . . . Retrieved Components . | . . . . Parts Scanalyzed . | . . . . Part Schematics Acquired . | . . . . Parts Damaged . | . . . . Bothacking | -11 -10 -10 -9 ------------ Run | Scr Mat Min Mat Used RIF Installer . | . . . . Robots Hacked . | . . . . Non-combat . | . . . . Combat . | . . . . Robot Hacks Applied . | . . . . Relay Couplers Released . | . . . . Robots Rewired . | . . . . Allies Hacked . | . . . . Hacks Repelled . | . . . . Allies | -11 -10 -10 -9 -------- Run | Scr Mat Min Mat Total Allies . | . . . . Largest Group . | . . . . Highest-Rated Group . | . . . . Highest-Rated Ally . | . . . . Total Orders . | . . . . Ally Attacks . | . . . . Total Damage . | . . . . Kills . | . . . . Allies Corrupted . | . . . . Allies Melted . | . . . . Intel | -11 -10 -10 -9 ------- Run | Scr Mat Min Mat Robot Analysis Total . | . . . . Derelict Logs Recovered . | . . . . Drone Launches . | . . . . Drone Recoveries . | . . . . Exploration | -11 -10 -10 -9 ------------- Run | Scr Mat Min Mat Turns Passed 787 | 60 39 270 418 Spaces Moved 416 | 38 25 159 194 Core 50 | 10 . . 40 Treads 366 | 28 25 159 154 Legs . | . . . . Wheels . | . . . . Hover . | . . . . Flight . | . . . . Fastest Speed 50 | 50 160 160 100 Average Speed 154 | 131 160 160 154 Slowest Speed 200 | 160 160 160 200 Overloaded Moves . | . . . . Propulsion Burnouts . | . . . . Robots Hopped . | . . . . Cave-ins Triggered 1 | . . . 1 Exploration Rate (%) 24 | 3 16 47 30 Regions Visited 3 Branch Regions 1 Pre-discovered Areas . | . . . . Known Exits Taken . | . . . . Unknown Exits Taken 3 | 1 1 1 . Scrap Searched 1 | . . 1 . Spaces Dug 34 | . . . 34 Terrain Destroyed 205 | . . . 205 Melee . | . . . . Projectile . | . . . . AOE 205 | . . . 205 Actions | -11 -10 -10 -9 --------- Run | Scr Mat Min Mat Total 509 | 48 24 168 269 Wait . | . . . . Move 413 | 37 24 158 194 Hop . | . . . . Pick Up 20 | 7 . 2 11 Fast Attach . | . . . . Attach 13 | 4 . 1 8 Detach . | . . . . Swap 1 | . . . 1 Drop 6 | . . . 6 Fire 55 | . . 7 48 Melee . | . . . . Ram 1 | . . . 1 Kick . | . . . . Crush . | . . . . Escape Stasis . | . . . . Rewire . | . . . . Trap . | . . . . Miscellaneous . | . . . . Route ------- -11/Scrapyard -10/Materials -10/Mines -9/Materials History --------- Turn | Location | Event 5 | -11/Scrapyard | Discovered new exit (range 14) 61 | -11/Scrapyard | Entered Materials 76 | -10/Materials | Discovered new exit (range 16) 100 | -10/Materials | Entered Mines 130 | -10/Mines | Met a Derelict who couldn't figure out how to use a Trap Extractor 317 | -10/Mines | Build established: Mutant 351 | -10/Mines | Discovered new exit (range 15) 370 | -10/Mines | Entered Materials 370 | -9/Materials | Evolved 2 slots: Propulsion x1, Utility x1 678 | -9/Materials | Destroyed 9 combat bots 714 | -9/Materials | Crushed by falling debris 745 | -9/Materials | Lost 3 parts (1n2u) 751 | -9/Materials | Core integrity fell below 50% 779 | -9/Materials | Core integrity fell below 20% 788 | -9/Materials | Destroyed self with Rocket Launcher Last Messages --------------- U-05 Engineer lays Concrete. The unstable cave ceiling collapses. U-05 Engineer lays Concrete. R-06 Scavenger collects Prototype Energy Gun. U-05 Engineer lays Concrete. Rocket Launcher destroyed. K-01 Serf collects debris. U-05 Engineer lays Concrete. K-01 Serf collects debris. U-05 Engineer lays Concrete. The unstable cave ceiling collapses. R-06 Scavenger collects Aluminum Leg. U-05 Engineer lays Concrete. Acquired 72 matter. U-05 Engineer builds a Wall. The unstable cave ceiling collapses. [Achievement: Remodeling] U-05 Engineer lays Concrete. U-05 Engineer builds a Wall. Y-45 Defender destroyed. Map ----- +----------------------------------------------------+ | ?????????????????????????????????????????????????? | | ?????????????????????????????????????????????????? | | ?????????????????????????????????????????????????? | | ?????????????????????????????????????????????????? | | ?????????????????????????????????????????????????? | | ?????????????????????????????????????????????????? | | ?????????????????????????????????????????????????? | | ?????????????????????????????????????????????????? | | ????????????????????????????# ###????????????????? | | ???????????????????????????# #???????????????? | | ???????????????????????????# #???????????????? | | ???????????????????????????# #? ?????????????? | | ???????????????????#?????### # #???????????? | | ???????????????????? ??? # # #???????????? | | ???????????????????? ?? # *! # #???????????? | | ??????????????????? ?= # *! # #???????????? | | ?????????????????#? # ! # #???????????? | | ?????????????????# """ """ # # #????#??????? | | ?????????????????# """ """ # + ## #????? | | ?????????????????# """ """ # # ## #????? | | ?????????????????? # # ## ###### | | ??????????????###??# # # # ## + | | ?????????????## # #[* # ###### | | ?????????????# a # #????? | | ?????????????# !% + ###### | | ?????????????# @! # # | | ??????????????# u # # """ | | ???????????# ## # # ## # """" | | ???????????# ?????## # !! ## # """" | | ?????????????????????# # r # # """" | | ?????????????????????# # ! ## ###### """ | | ?????????????????????# ##!! #### # | | ?????????????????????# ##== #??# """ ]# | | ?????????????????????# ##== #??# ""T"" ###### | | ????????????????????? ######??## !#????? | | ????????????????????? ########### ########### | | ???????????????????? | | ????????????????????#+##### | | ??????????????????????? + | | ??????????????????????? ########## # ####### | | ??????????????????????? ######### #?????? | | ??????????????????????? # # #####??? | | ??????????????????????? # """" # # #### | | ??????????????????????? # """ ## | | ??????????????????????? # "" %+% | | ??????????????????????? # "" ## | | ??????????????????????? # # % """ | | ??????????????????????? ### # "" | | ???????????????????????##?# "" | | ??????????????????#####??## # ##### | +----------------------------------------------------+ Best States ------------- Heat Dissipation 28 Energy Generation 14 Energy Capacity 280 Matter Stores 300 Matter Capacity 300 Sight Range 16 Terrain Scan Density 10 Evasion (%) 50 Targeting Accuracy 6 Recoil Reduction 1 Item Schematics ----------------- None Robot Schematics ------------------ None Fabricated ------------ Nothing Alien Tech Used ----------------- None Achievements -------------- Remodeling Unlikely Earthworm Challenges ------------ None Game ------ Seed NuclearSpreadBlaster Manual? 0 Play Time 00:11:03 Cumulative 4.7 hours Start 2020.06.15 @ 21:16:00 End 2020.06.15 @ 21:30:01 Sessions 1 Manual Loads 0 Difficulty Rogue Special Mode None Game No. 12 Rogue 8 Adventurer 3 Explorer 1 Win Type - Total 0 Types 0/0/0/0/0/0/0 Lore% 7 Gallery% 11 Achievement% 10 Wizard Run 0 Options --------- ASCII 0 Keyboard 0 Movement Mouse Keybinds 0 Fullscreen 2 Font 18/SmallcapsGlow Map View 76x50 Tactical HUD 0 Map Filters NONE Filters NONE Steam 1 RUN: 182cea13-abd1-4793-98e2-ed4f7ab7a2ef